bitfinex/quotes_ETHUSD_20251118
["timestamp","ask_amount","ask_price","bid_price","bid_amount"]
[1763497008475,0.0003501,3148.3,3148.2,3.21327206]
[1763497009680,0.0003501,3148.3,3148.2,6.38969033]
[1763497009881,0.002,3148.4,3148.3,1.31249664]
[1763497010086,0.002,3148.8,3148.3,3.22718392]
[1763497010258,0.002,3148.8,3148.7,0.883804]
[1763497010451,0.002,3148.8,3148.7,1.360304]
[1763497010978,0.002,3148.8,3148.7,1.48758207]
[1763497012158,0.075,3148.8,3148.3,0.95988728]
[1763497012362,0.5472,3148.8,3148.2,0.81867223]
[1763497012651,0.075,3148.8,3148.3,0.405504]
[1763497013253,0.0047,3148.4,3148.1,0.001]
[1763497013449,0.4729,3148.2,3148.1,0.001]
[1763497013880,0.0047,3148.6,3148.1,0.001]
[1763497014185,0.4773,3148.2,3148.1,0.001]
[1763497015988,0.0047,3148.6,3148.1,0.001]
[1763497016300,0.002,3148.8,3148.1,0.001]
[1763497016301,0.002,3148.8,3148.1,0.4775]
[1763497018100,0.002,3148.8,3148.2,0.405504]
[1763497018455,0.002,3148.8,3148.2,0.882004]
[1763497018656,0.002,3148.8,3148.7,0.4783]
[1763497019969,0.002,3148.8,3148.4,0.405504]
[1763497020296,0.002,3148.8,3148.6,0.405504]
[1763497021357,0.002,3148.8,3148.7,0.4783]
[1763497021567,0.002,3148.8,3148.7,0.883804]
[1763497021774,0.002,3148.8,3148.7,1.360304]
[1763497022191,0.002,3148.8,3148.7,0.883804]
[1763497022358,0.002,3148.8,3148.7,1.360304]
[1763497023394,0.002,3148.8,3148.7,1.48758612]
[1763497023594,0.002,3148.8,3148.7,1.6542347]
[1763497024469,0.002,3148.8,3148.7,2.56122734]
[1763497025103,0.002,3148.8,3148.7,1.6542347]
[1763497026367,0.00035027,3148.8,3148.7,1.6542347]
[1763497027172,0.00035027,3148.8,3148.7,1.1777347]
[1763497027379,0.00035027,3148.8,3148.7,1.6481347]
[1763497029094,0.18035027,3148.8,3148.7,1.6481347]
[1763497029776,0.18035027,3148.8,3148.7,2.55512734]
[1763497029976,0.18035027,3148.8,3148.7,1.6481347]
[1763497030400,0.18035027,3148.8,3148.7,2.55512734]
[1763497030697,0.18035027,3148.8,3148.7,1.6481347]
[1763497031315,0.002,3149.0,3148.8,1.31249664]
[1763497031505,0.002,3149.0,3148.9,1.84025663]
[1763497031706,0.002,3149.5,3149.2,0.405504]
[1763497031892,0.002,3149.5,3149.2,1.630304]
[1763497032102,0.4578,3151.1,3149.5,0.405504]
[1763497032280,0.4578,3151.1,3149.9,0.890904]
[1763497032486,3.351,3152.5,3149.9,0.890904]
[1763497032688,0.4578,3151.4,3149.9,1.48853066]
[1763497032887,0.4578,3151.4,3149.9,2.42727033]
[1763497033094,3.351,3152.5,3149.9,1.76300472]
[1763497033390,0.4578,3151.2,3149.9,2.66999736]
[1763497033589,0.4578,3151.2,3149.9,2.63825033]
[1763497033818,0.4578,3151.2,3149.9,1.76300472]
[1763497034119,0.4578,3151.2,3150.0,0.405504]
[1763497034410,0.4578,3151.2,3150.4,0.890904]
[1763497035014,0.5743,3151.0,3150.4,0.405504]
[1763497036419,0.5743,3151.0,3150.4,0.875904]
[1763497036587,0.5743,3151.0,3150.4,1.361304]
[1763497037418,0.1165,3151.0,3150.4,1.831704]
[1763497037585,0.1165,3151.0,3150.4,2.0148744]
[1763497037789,0.1165,3151.0,3150.4,1.5444744]
[1763497038005,0.1165,3151.0,3150.4,2.0148744]
[1763497039121,0.002,3151.2,3150.5,0.405504]
[1763497039301,0.002,3151.2,3151.1,1.087604]
[1763497039499,0.6443,3153.0,3151.2,0.405504]
[1763497039813,0.6443,3153.0,3151.4,0.405504]
[1763497040009,0.6443,3153.0,3151.6,0.405504]
[1763497040209,0.6443,3153.0,3151.8,0.405504]
[1763497040545,0.6443,3153.0,3151.9,0.269]
[1763497040718,0.6443,3153.0,3151.9,0.7558]
[1763497041034,0.6443,3153.0,3152.1,0.405504]
[1763497041408,0.6443,3153.0,3152.3,0.405504]
[1763497041740,0.1865,3153.0,3152.3,0.405504]
[1763497042034,0.1185,3154.1,3152.5,0.405504]
[1763497042238,0.4821,3154.0,3152.5,0.405504]
[1763497042436,0.4821,3154.0,3152.7,0.405504]
[1763497042936,0.4821,3154.0,3152.9,0.405504]
[1763497043430,0.0673,3153.0,3152.3,0.62587687]
[1763497043630,0.0673,3153.0,3152.4,0.405504]
[1763497043837,0.4779,3153.4,3152.5,0.405504]
[1763497044153,0.4821,3153.9,3152.9,0.4803]
[1763497045007,0.1185,3154.1,3153.0,0.405504]
[1763497045228,0.6006,3154.1,3153.0,0.405504]
[1763497045426,0.6006,3154.1,3153.2,0.405504]
[1763497046038,0.6006,3154.1,3153.3,0.6006]
[1763497046239,0.0673,3153.4,3153.3,0.7692804]
[1763497046548,0.0673,3153.4,3153.3,0.6006]
[1763497047063,0.1185,3154.1,3153.3,1.0809]
[1763497047224,0.1185,3154.1,3153.4,0.405504]
[1763497047820,0.1185,3154.1,3153.3,0.6006]
[1763497047821,0.6006,3154.1,3153.3,0.6006]
[1763497048221,0.0673,3153.4,3153.3,0.6006]
[1763497048422,0.6006,3154.1,3153.3,0.6006]
[1763497049055,0.1185,3154.1,3153.4,0.405504]
[1763497049968,0.6006,3154.1,3153.3,0.6006]
[1763497050865,0.0673,3153.4,3153.3,0.6006]
[1763497051034,0.5452,3153.4,3153.3,0.6006]
[1763497051663,0.0673,3153.4,3153.3,0.6006]
[1763497051951,0.4779,3153.8,3153.3,0.6006]
[1763497052176,0.0714,3153.4,3153.3,0.6006]
[1763497052458,0.0714,3153.4,3152.3,1.1220245]
[1763497052459,0.0714,3153.4,3152.3,0.6352245]
[1763497052660,0.4739,3153.3,3152.1,0.1939]
[1763497052821,0.4739,3153.3,3152.4,0.4779]
[1763497053678,0.2611,3152.5,3152.4,0.4779]
[1763497054048,0.7321,3152.5,3152.4,0.4779]
[1763497054477,0.2611,3152.5,3152.4,0.4779]
[1763497055746,0.7321,3152.5,3151.5,0.62362034]
[1763497055978,0.471,3152.4,3151.3,0.405504]
[1763497056145,0.471,3152.4,3151.7,0.471]
[1763497056792,0.1857,3152.5,3151.7,0.471]
[1763497056947,0.1857,3152.5,3151.7,0.9327]
[1763497057681,0.1857,3152.5,3151.8,0.4617]
[1763497059772,0.1869,3153.0,3151.8,0.405504]
[1763497060085,0.4821,3152.8,3151.8,0.405504]
[1763497060258,0.4821,3152.8,3151.7,0.471]
[1763497060463,0.2429,3151.8,3151.7,0.471]
[1763497060865,0.4821,3152.7,3151.7,0.471]
[1763497061079,0.1869,3153.0,3151.7,0.9457]
[1763497061303,0.669,3153.0,3151.8,0.4617]
[1763497061476,0.1869,3153.0,3151.8,0.4617]
[1763497062910,1.914,3154.8,3151.8,0.4617]
[1763497062911,0.002,3154.8,3152.9,0.6663]
[1763497063207,0.002,3154.8,3151.9,1.61322353]
[1763497063208,0.4821,3153.9,3152.7,0.4617]
[1763497063415,0.4821,3153.9,3152.6,0.1916]
[1763497063578,0.4821,3153.9,3152.8,0.4821]
[1763497065788,0.253,3152.9,3152.8,0.4821]
[1763497066218,0.7321,3152.9,3151.6,0.4617]
[1763497066422,0.6648,3152.9,3152.2,0.64148165]
[1763497066706,0.4821,3152.8,3152.2,0.64148165]
[1763497066916,0.0684,3152.3,3152.2,0.64148165]
[1763497069527,0.5463,3152.3,3152.2,0.64148165]
[1763497070739,0.5463,3152.3,3151.0,0.4617]
[1763497071235,0.5463,3152.3,3150.8,0.001]
[1763497071236,0.4779,3152.3,3151.6,0.867204]
[1763497071438,0.2482,3151.7,3151.1,0.001]
[1763497071640,0.4779,3152.3,3151.2,0.4617]
[1763497071838,0.4779,3152.3,3151.2,0.9234]
[1763497072136,0.4821,3152.5,3151.2,0.9234]
[1763497072435,0.4821,3152.5,3151.3,0.4617]
[1763497072634,0.4841,3152.5,3151.2,0.4617]
[1763497074420,0.4841,3152.5,3151.2,0.9234]
[1763497074807,0.4841,3152.5,3151.2,0.4617]
[1763497075010,0.4841,3152.5,3151.3,0.4617]
[1763497075638,0.002,3152.5,3151.4,0.43723592]
[1763497076019,0.002,3152.5,3151.5,0.4617]
[1763497076437,0.002,3152.5,3151.6,0.4617]
[1763497076939,0.002,3152.5,3151.6,0.9234]
[1763497077536,0.4821,3152.4,3151.6,0.4617]
[1763497078323,0.002,3152.5,3151.6,0.9234]
[1763497078741,0.4841,3152.5,3151.6,0.9234]
[1763497079453,0.4841,3152.5,3151.6,0.4617]
[1763497081246,0.0673,3151.7,3151.6,0.4617]
[1763497081651,0.1779,3151.9,3151.6,0.4617]
[1763497082862,0.002,3152.5,3151.6,0.4617]
[1763497083048,0.4821,3152.3,3151.6,0.4617]
[1763497085258,0.4821,3152.3,3151.7,0.0317289]
[1763497085854,0.4821,3152.3,3151.6,0.4617]
[1763497086052,0.002,3152.5,3151.6,0.4617]
[1763497086257,0.002,3152.5,3151.6,0.4745]
[1763497086496,0.002,3152.5,3151.7,0.405504]
[1763497086667,0.002,3152.5,3152.4,0.6569]
[1763497087571,0.002,3152.5,3152.4,1.25855144]
[1763497088089,0.002,3152.5,3152.4,0.78405144]
[1763497088305,0.5474,3152.5,3151.2,0.405504]
[1763497088507,0.0978,3152.5,3151.7,0.4745]
[1763497088789,0.002,3152.5,3152.4,0.6569]
[1763497089005,0.002,3152.5,3151.8,0.405504]
[1763497089198,0.002,3152.5,3151.8,0.857104]
[1763497089355,0.002,3152.5,3151.9,0.4745]
[1763497089755,0.002,3152.5,3152.4,1.062404]
[1763497090157,0.002,3152.5,3152.4,1.536904]
[1763497090988,0.002,3152.5,3152.4,2.16390483]
[1763497091285,0.002,3152.5,3152.4,1.97479131]
[1763497091689,0.002,3152.5,3152.4,2.38029531]
[1763497092700,0.002,3152.9,3152.5,1.31249664]
[1763497092884,0.002,3152.9,3152.8,0.868404]
[1763497093192,0.002,3152.9,3152.8,1.342904]
[1763497093958,0.002,3152.9,3152.8,0.9374]
[1763497094361,0.002,3152.9,3152.8,0.4629]
[1763497094583,0.002,3152.9,3152.5,0.405504]
[1763497094772,0.002,3152.9,3152.6,0.19173953]
[1763497095091,0.1877,3152.9,3152.6,0.19173953]
[1763497095300,0.1877,3152.9,3152.4,0.82100083]
[1763497095483,0.1877,3152.9,3152.4,1.29550083]
[1763497095995,0.002,3152.9,3152.8,0.4629]
[1763497096590,0.002,3152.9,3152.8,0.9374]
[1763497096992,0.002,3152.9,3152.8,0.4629]
[1763497097193,0.002,3152.9,3152.5,0.4745]
[1763497097360,0.002,3152.9,3152.6,0.4532]
[1763497099265,0.002,3152.9,3152.6,0.9277]
[1763497099724,0.0958,3152.7,3152.6,0.62807008]
[1763497100003,0.0958,3152.7,3152.3,0.4532]
[1763497101216,0.0958,3152.7,3152.1,0.194]
[1763497101384,0.0958,3152.7,3152.1,0.6685]
[1763497102073,0.6373,3152.9,3152.1,0.6685]
[1763497102074,0.002,3152.9,3152.6,0.4682]
[1763497102270,0.002,3152.9,3152.2,0.4911]
[1763497103896,0.4573,3152.9,3152.1,0.6685]
[1763497104698,0.4573,3152.9,3152.1,0.4745]
[1763497105006,0.0938,3152.2,3151.5,0.4911]
[1763497105168,0.0938,3152.2,3151.7,0.4573]
[1763497105373,0.4573,3152.9,3151.8,0.4911]
[1763497105374,0.4517,3152.6,3151.8,0.4911]
[1763497105573,0.002,3152.9,3151.8,0.4911]
[1763497105818,0.002,3152.9,3151.9,0.03172689]
[1763497105972,0.002,3152.9,3152.0,0.4911]
[1763497106493,0.002,3152.9,3152.1,0.1905]
[1763497106895,0.002,3152.9,3152.1,0.6816]
[1763497107302,0.002,3152.9,3152.2,0.4911]
[1763497109109,0.002,3152.9,3152.8,0.4682]
[1763497109276,0.002,3152.9,3152.8,0.9593]
[1763497109471,0.002,3152.9,3152.4,0.4911]
[1763497110473,0.1877,3152.9,3152.4,0.64009115]
[1763497110694,0.1877,3152.9,3152.3,0.4553]
[1763497110905,0.1877,3152.9,3152.4,0.4911]
[1763497111088,0.002,3152.9,3152.4,0.4911]
[1763497111406,0.002,3152.9,3152.3,0.4553]
[1763497111407,0.1877,3152.9,3152.3,0.4553]
[1763497111974,0.002,3152.9,3152.3,0.9464]
[1763497113493,0.002,3152.9,3152.4,0.4911]
[1763497113902,0.1877,3152.9,3152.4,0.4573]
[1763497114220,0.1877,3152.9,3152.2,0.405504]
[1763497114390,0.643,3152.9,3152.3,0.4573]
[1763497114586,0.1877,3152.9,3152.3,0.4573]
[1763497114790,0.1877,3152.9,3152.3,0.9484]
[1763497116021,0.1877,3152.9,3152.1,0.1905]
[1763497116022,0.002,3152.9,3152.4,0.4911]
[1763497116196,0.002,3152.9,3152.4,0.9484]
[1763497116526,0.002,3152.9,3152.5,0.4547]
[1763497116710,0.002,3152.9,3152.8,0.4665]
[1763497116914,0.002,3152.9,3152.5,0.912]
[1763497117628,0.0948,3152.9,3152.5,0.4573]
[1763497117797,0.002,3152.9,3152.5,0.4573]
[1763497117988,0.002,3152.9,3152.5,0.912]
[1763497118192,0.002,3152.9,3152.1,1.09749264]
[1763497118193,0.0948,3152.9,3152.4,0.65017421]
[1763497118392,0.5769,3152.9,3152.2,0.405504]
[1763497118690,0.0948,3152.9,3152.4,0.4841]
[1763497118923,0.002,3152.9,3152.4,0.9388]
[1763497119425,0.002,3152.9,3152.8,0.4665]
[1763497119598,0.002,3152.9,3152.8,0.9212]
[1763497120119,0.002,3152.9,3152.5,0.860204]
[1763497120333,0.002,3152.9,3152.8,0.4665]
[1763497120894,0.002,3152.9,3152.8,0.59362153]
[1763497122309,0.002,3152.9,3152.8,1.04832153]
[1763497123204,0.002,3152.9,3152.8,0.59362153]
[1763497124228,0.002,3152.9,3152.8,1.04832153]
[1763497124417,0.002,3152.9,3152.8,0.59362153]
[1763497125039,0.002,3152.9,3152.8,1.04832153]
[1763497125941,0.00028383,3152.9,3152.8,1.45382553]
[1763497126143,0.00028383,3152.9,3152.8,6.38603497]
[1763497126953,0.002,3153.2,3152.9,1.31249664]
[1763497127120,0.002,3153.2,3153.1,0.6474]
[1763497127624,0.002,3153.2,3153.1,1.1021]
[1763497128303,0.002,3153.2,3153.1,1.2292078]
[1763497128503,0.002,3153.2,3153.1,1.48337824]
[1763497128968,0.002,3153.2,3153.1,1.02867824]
[1763497129170,0.0693,3153.2,3153.1,0.38127824]
[1763497129469,0.0693,3153.2,3153.1,0.1271078]
[1763497129770,0.002,3153.2,3153.1,0.1271078]
[1763497130368,0.002,3153.2,3153.1,0.5936078]
[1763497131126,0.002,3153.2,3153.1,0.1271078]
[1763497131326,0.0734,3153.2,3153.1,0.1271078]
[1763497131864,0.002,3153.2,3153.1,0.1271078]
[1763497132421,0.002,3153.2,3153.1,0.5936078]
[1763497132732,0.002,3153.2,3153.1,0.1271078]
[1763497133753,0.0734,3153.2,3153.1,0.1271078]
[1763497133960,0.5473,3153.2,3152.8,0.1652168]
[1763497134123,0.0047,3152.9,3152.8,0.4759]
[1763497134652,0.002,3153.2,3152.6,0.19834244]
[1763497134856,0.002,3153.2,3152.8,0.4665]
[1763497135019,0.002,3153.2,3152.8,0.9212]
[1763497135226,0.0673,3152.9,3152.7,0.12712679]
[1763497135626,0.0048,3152.8,3152.7,0.12712679]
[1763497135832,0.4869,3152.8,3152.5,0.001]
[1763497136164,0.0625,3152.6,3152.5,0.001]
[1763497136937,0.0928,3152.9,3152.5,0.001]
[1763497137134,0.0928,3152.9,3152.5,0.4675]
[1763497137339,0.0673,3152.6,3152.5,0.001]
[1763497140477,0.002,3153.2,3152.5,0.4675]
[1763497140681,0.4841,3153.2,3152.5,0.001]
[1763497140856,0.0673,3152.6,3152.5,0.001]
[1763497141442,0.0928,3152.8,3152.5,0.4675]
[1763497141643,0.002,3153.2,3152.5,0.4675]
[1763497141847,0.0928,3153.0,3152.5,0.4675]
[1763497142278,0.0928,3153.0,3152.6,0.03171985]
[1763497142446,0.002,3153.2,3152.6,0.48641985]
[1763497142660,0.002,3153.2,3153.1,0.4665]
[1763497143271,0.002,3153.2,3152.6,0.4547]
[1763497143272,0.0693,3153.2,3152.6,0.405504]
[1763497143695,0.0693,3153.2,3152.7,0.4779]
[1763497143977,0.002,3153.2,3152.7,0.4779]
[1763497144187,0.0714,3152.8,3152.7,0.4779]
[1763497144359,0.0714,3152.8,3152.5,0.001]
[1763497144360,0.1642,3152.8,3152.5,0.001]
[1763497144682,0.0047,3152.6,3152.5,0.001]
[1763497144868,0.0047,3152.6,3152.5,0.16839801]
[1763497145071,0.4739,3153.1,3152.5,0.63489801]
[1763497145380,0.4739,3153.1,3152.5,0.16839801]
[1763497145781,0.002,3153.2,3152.5,0.16839801]
[1763497147682,0.002,3153.2,3152.5,0.63339801]
[1763497147881,0.4804,3153.2,3152.5,0.16839801]
[1763497148084,0.0709,3152.6,3152.5,0.001]
[1763497148461,0.4804,3153.2,3152.5,0.47]
[1763497149056,0.4804,3153.2,3152.5,0.001]
[1763497150088,0.0709,3152.6,3152.5,0.001]
[1763497150286,0.4804,3153.2,3152.5,0.001]
[1763497150486,0.4804,3153.2,3152.5,0.47]
[1763497151092,0.4804,3153.2,3152.6,0.4804]
[1763497151890,0.0709,3152.7,3152.6,0.4804]
[1763497152791,0.4804,3153.2,3152.6,0.9494]
[1763497152992,0.4804,3153.2,3152.6,1.10832433]
[1763497153193,0.1635,3152.7,3152.5,0.001]
[1763497153400,0.0926,3152.7,3152.5,0.001]
[1763497153756,0.0926,3152.7,3152.6,0.465]
[1763497154482,0.4784,3153.1,3152.6,0.465]
[1763497154790,0.0928,3152.9,3152.6,0.465]
[1763497157416,0.002,3153.2,3152.8,0.469]
[1763497157762,0.4532,3152.9,3152.6,0.465]
[1763497157958,0.1877,3153.1,3152.6,0.465]
[1763497158194,0.3568,3152.7,3152.6,0.465]
[1763497158400,0.002,3153.2,3152.6,0.465]
[1763497158745,0.002,3153.2,3152.6,0.934]
[1763497158944,0.4804,3153.2,3152.6,0.934]
[1763497159121,0.1635,3152.7,3152.5,0.001]
[1763497159324,0.0009,3152.6,3152.5,0.001]
[1763497159526,0.4793,3152.6,3152.5,0.001]
[1763497159733,0.0009,3152.6,3152.5,0.001]
[1763497160025,0.4804,3153.2,3152.5,0.47]
[1763497160215,0.4804,3153.2,3152.6,0.469]
[1763497160751,0.002,3153.2,3152.6,0.934]
[1763497161517,0.4841,3153.2,3152.5,0.001]
[1763497162536,0.002,3153.2,3152.6,0.4779]
[1763497162738,0.002,3153.2,3153.1,0.4528]
[1763497163448,0.002,3153.2,3152.8,0.4779]
[1763497163747,0.002,3153.2,3152.9,0.12712396]
[1763497164955,0.0673,3153.0,3152.9,0.12712396]
[1763497165168,0.0673,3153.0,3152.5,0.001]
[1763497165367,0.0926,3152.9,3152.5,0.001]
[1763497165566,0.002,3153.2,3152.9,0.4528]
[1763497165771,0.002,3153.2,3152.6,0.60503972]
[1763497166254,0.002,3153.2,3152.7,0.4779]
[1763497166450,0.002,3153.2,3152.6,0.12713972]
[1763497166982,0.002,3153.2,3152.6,0.60503972]
[1763497167681,0.4841,3153.2,3152.6,0.12713972]
[1763497167894,0.0673,3152.7,3152.6,0.12713972]
[1763497168661,0.5455,3152.7,3152.5,0.001]
[1763497168871,0.0714,3152.6,3152.5,0.001]
[1763497170358,0.5455,3152.6,3152.5,0.001]
[1763497176078,0.0714,3152.6,3152.5,0.001]
[1763497176273,0.0754,3152.6,3152.5,0.001]
[1763497177194,0.5277,3152.6,3152.5,0.001]
[1763497177588,0.0754,3152.6,3152.5,0.001]
[1763497177782,0.097,3152.6,3152.5,0.001]
[1763497178301,0.0926,3152.9,3152.5,0.001]
[1763497178703,0.4543,3153.2,3152.5,0.4552]
[1763497179282,0.002,3153.2,3152.5,0.4552]
[1763497180830,0.4543,3153.2,3152.5,0.001]
[1763497181702,0.0967,3152.6,3152.5,0.4553]
[1763497181887,0.4543,3153.2,3152.1,0.194]
[1763497182086,0.4543,3153.2,3152.2,0.4543]
[1763497182481,0.4543,3153.2,3152.3,0.4542]
[1763497182888,0.4543,3153.2,3152.2,0.4543]
[1763497183084,0.4543,3153.2,3152.2,0.9085]
[1763497185301,0.4543,3153.2,3152.3,0.4542]
[1763497187913,0.002,3153.2,3152.3,0.4542]
[1763497188121,0.002,3153.2,3152.4,0.4543]
[1763497188834,0.002,3153.2,3152.4,0.9085]
[1763497189036,0.002,3153.2,3152.5,0.4542]
[1763497191531,0.4543,3153.2,3152.4,0.4542]
[1763497191732,0.4543,3153.2,3152.2,0.4542]
[1763497192038,0.4543,3153.2,3152.2,0.9084]
[1763497192531,0.4543,3153.2,3152.2,0.4542]
[1763497192736,0.4543,3153.2,3152.1,0.194]
[1763497192737,0.4543,3153.2,3152.3,0.4543]
[1763497196837,0.4543,3153.2,3152.1,0.194]
[1763497197026,0.4543,3153.2,3152.2,0.4543]
[1763497199343,0.4543,3153.2,3152.2,0.9085]
[1763497199709,0.4543,3153.2,3152.2,0.4543]
[1763497199913,0.4543,3153.2,3152.3,0.4542]
[1763497200457,0.002,3153.2,3152.1,0.194]
[1763497200609,0.002,3153.2,3152.2,0.4542]
[1763497202824,0.002,3153.2,3152.3,0.405504]
[1763497203240,0.002,3153.2,3152.4,0.4542]
[1763497203550,0.002,3153.2,3152.4,0.9065]
[1763497203717,0.002,3153.2,3152.1,0.194]
[1763497203917,0.4523,3153.1,3152.1,0.6482]
[1763497204114,0.4523,3153.1,3152.1,0.4533]
[1763497204315,0.4523,3153.1,3152.1,0.001]
[1763497204316,0.1895,3152.2,3152.1,0.001]
[1763497205153,0.0928,3152.5,3152.1,0.001]
[1763497206014,0.0928,3152.8,3152.4,0.4817]
[1763497206256,0.90899264,3153.2,3152.4,0.4817]
[1763497206257,0.002,3153.2,3152.4,0.4817]
[1763497206547,0.4821,3153.1,3152.1,0.6826]
[1763497207113,0.4821,3153.1,3152.1,0.001]
[1763497207336,0.0673,3152.2,3152.1,0.001]
[1763497207970,0.0928,3152.8,3152.1,1.1464]
[1763497208174,0.5749,3152.8,3152.1,0.4692]
[1763497208537,0.0673,3152.2,3152.1,0.001]
[1763497208741,0.5749,3152.8,3152.1,0.001]
[1763497209463,0.0928,3152.8,3152.1,0.1896]
[1763497209669,0.0928,3152.8,3152.1,0.6782]
[1763497211152,0.0673,3152.2,3152.1,0.001]
[1763497211338,0.4821,3152.7,3152.1,0.001]
[1763497211946,0.002,3152.5,3152.1,0.001]
[1763497213475,0.002,3152.5,3152.4,0.4682]
[1763497214239,0.002,3152.5,3152.4,0.9568]
[1763497215273,0.002,3152.5,3152.4,0.4682]
[1763497215477,0.002,3152.5,3152.1,0.1896]
[1763497215680,0.002,3152.5,3152.1,0.6782]
[1763497215985,0.002,3152.5,3152.1,0.1896]
[1763497216195,0.002,3152.5,3152.4,0.4682]
[1763497217687,0.002,3152.5,3152.2,0.4886]
[1763497217995,0.4751,3152.3,3152.1,0.001]
[1763497218152,0.4711,3152.2,3152.1,0.001]
[1763497218350,3.8221,3152.2,3152.1,0.001]
[1763497218557,4.695724,3152.2,3152.1,0.001]
[1763497219174,1.344724,3152.2,3152.1,0.001]
[1763497219378,0.954704,3152.2,3152.1,0.001]
[1763497220305,0.5492,3152.2,3152.1,0.001]
[1763497220903,0.4711,3152.2,3152.1,0.001]
[1763497222093,0.002,3152.5,3152.1,0.6532]
[1763497222260,0.002,3152.5,3152.1,1.1185]
[1763497222879,0.002,3152.5,3152.4,0.4698]
[1763497223788,0.0693,3152.5,3152.1,0.001]
[1763497223991,0.0048,3152.3,3152.1,0.001]
[1763497224175,0.002,3152.5,3152.1,0.001]
[1763497224577,0.002,3152.5,3152.2,0.4653]
[1763497224802,0.002,3152.5,3152.1,0.1834]
[1763497226197,0.40517515,3153.1,3152.1,0.1834]
[1763497226404,3.351,3153.7,3152.1,0.1834]
[1763497226697,3.351,3153.7,3152.1,0.001]
[1763497227203,3.351,3153.7,3152.1,0.1834]
[1763497227597,3.351,3153.7,3152.1,0.6487]
[1763497228507,0.3171,3153.4,3152.2,0.4653]
[1763497228690,0.3191,3153.3,3152.2,0.4653]
[1763497229198,3.353,3153.2,3152.2,0.4653]
[1763497229392,0.002,3153.2,3152.2,0.4653]
[1763497235781,0.002,3153.2,3152.1,0.1834]
[1763497235984,0.3171,3153.1,3152.1,0.1834]
[1763497236280,0.3171,3153.1,3152.1,0.001]
[1763497236578,0.3171,3153.1,3152.1,0.1858]
[1763497236781,0.002,3153.2,3152.2,0.4813]
[1763497236782,0.407504,3153.2,3152.2,0.4813]
[1763497236986,0.3171,3153.1,3152.2,0.4813]
[1763497237813,0.002,3153.2,3152.2,0.4813]
[1763497238484,0.3191,3153.2,3152.2,0.4813]
[1763497239809,0.36721,3153.1,3152.2,0.4813]
[1763497240194,0.68431,3153.1,3152.2,0.4813]
[1763497240599,0.36721,3153.1,3152.2,0.4813]
[1763497241829,0.3171,3153.1,3152.1,0.1858]
[1763497242397,3.756504,3153.0,3152.1,0.001]
[1763497242591,3.756504,3152.8,3152.1,0.001]
[1763497242901,3.351,3152.2,3152.1,0.001]
[1763497243424,3.6681,3152.2,3152.1,0.001]
[1763497243626,4.03491,3152.2,3152.1,0.001]
[1763497244206,0.68391,3152.2,3152.1,0.001]
[1763497244526,0.3171,3152.2,3152.1,0.001]
[1763497244746,0.722604,3152.2,3152.1,0.001]
[1763497247425,0.3171,3152.2,3152.1,0.001]
[1763497248656,0.722604,3152.7,3152.1,0.001]
[1763497249712,0.3171,3152.7,3152.1,0.001]
[1763497253424,0.002,3153.1,3152.2,0.4813]
[1763497254342,0.90699264,3153.0,3152.2,0.4813]
[1763497254541,0.42599926,3152.9,3152.2,0.4813]
[1763497255051,0.42599926,3152.9,3152.1,0.1858]
[1763497255350,0.74309926,3152.9,3152.1,0.1858]
[1763497255520,0.3171,3152.9,3152.1,0.6671]
[1763497256059,4.25999264,3153.1,3152.1,0.6671]
[1763497256231,0.002,3153.1,3152.2,0.4813]
[1763497256434,0.90899264,3153.1,3152.2,0.4813]
[1763497257452,0.002,3153.1,3152.2,0.4813]
[1763497257653,0.002,3153.1,3153.0,0.4589]
[1763497258244,0.002,3153.1,3153.0,0.9402]
[1763497259026,0.002,3153.2,3153.0,0.9402]
[1763497259265,0.002,3153.2,3153.1,1.125]
[1763497260956,0.002,3153.2,3153.1,0.9402]
[1763497263564,0.002,3153.2,3153.1,2.25269664]
[1763497263763,0.002,3153.3,3153.1,5.98508237]
[1763497263965,0.002,3153.3,3153.2,2.25269664]
[1763497264164,0.1779,3155.5,3153.6,0.405504]
[1763497264374,0.1783,3155.7,3153.5,0.4589]
[1763497264575,0.1783,3155.7,3153.6,0.4813]
[1763497264869,0.725004,3155.6,3153.6,0.4813]
[1763497265171,0.3195,3155.5,3153.6,0.4813]
[1763497266539,0.002,3153.7,3153.6,0.4813]
[1763497266840,0.002,3153.7,3153.6,0.886804]
[1763497267040,0.002,3153.7,3153.6,1.352204]
[1763497267844,0.002,3153.7,3153.6,1.757708]
[1763497268038,0.002,3153.7,3153.6,1.9334788]
[1763497269464,0.002,3153.7,3153.6,2.84047144]
[1763497269972,0.002,3153.7,3153.6,1.9334788]
[1763497270765,0.002,3153.7,3153.6,2.84047144]
[1763497271079,0.002,3154.0,3153.7,0.405504]
[1763497271242,0.002,3154.0,3153.9,0.870904]
[1763497271573,0.1783,3155.7,3153.9,0.870904]
[1763497271796,0.3195,3156.5,3155.6,0.6535]
[1763497271959,0.3195,3156.7,3155.6,0.6535]